fUST/lending_fUST_20250930
["ID","MTS","AMOUNT","RATE_DAILY","PERIOD"]
[388491440,1759210244530,-480.0,0.00019924,2]
[388491441,1759210244539,-492.87,0.00019924,2]
[388491442,1759210244551,-480.58,0.00019924,2]
[388491443,1759210244561,-480.0,0.00019924,2]
[388491444,1759210244570,-480.0,0.00019924,2]
[388491445,1759210244580,-563.22903841,0.00019924,2]
[388491446,1759210244589,-480.0,0.00019924,2]
[388491447,1759210244598,-480.0,0.00019924,2]
[388491448,1759210244608,-480.0,0.00019924,2]
[388491449,1759210244618,-157.351722,0.00019924,2]
[388491450,1759210244627,-480.0,0.00019924,2]
[388491451,1759210244637,-157.351722,0.00019924,2]
[388491452,1759210244646,-480.0,0.00019924,2]
[388491453,1759210244656,-157.351722,0.00019924,2]
[388491454,1759210244666,-157.351722,0.00019924,2]
[388491455,1759210244675,-494.53,0.00019924,2]
[388491456,1759210244685,-508.99,0.00019924,2]
[388491457,1759210244695,-480.0,0.00019924,2]
[388491458,1759210244704,-607.17,0.00019924,2]
[388491459,1759210244713,-518.05410985,0.00019924,2]
[388491460,1759210244723,-1335.74,0.00019924,2]
[388491461,1759210244733,-500.0,0.00019924,2]
[388491462,1759210244742,-480.0,0.00019924,2]
[388491463,1759210244751,-480.0,0.00019924,2]
[388491464,1759210244760,-480.0,0.00019924,2]
[388491465,1759210244770,-480.0,0.00019924,2]
[388491466,1759210244780,-480.0,0.00019924,2]
[388491467,1759210244789,-480.0,0.00019924,2]
[388491468,1759210244801,-1123.71,0.00019924,2]
[388491469,1759210244811,-482.19463511,0.00019924,2]
[388491470,1759210244820,-480.0,0.00019924,2]
[388491471,1759210244830,-480.0,0.00019924,2]
[388491472,1759210244841,-572.56,0.00019924,2]
[388491473,1759210244850,-480.0,0.00019924,2]
[388491474,1759210244859,-480.0,0.00019924,2]
[388491475,1759210244868,-480.0,0.00019924,2]
[388491476,1759210244877,-549.83,0.00019924,2]
[388491477,1759210244886,-480.0,0.00019924,2]
[388491478,1759210244896,-480.0,0.00019924,2]
[388491479,1759210244905,-481.62784983,0.00019924,2]
[388491480,1759210244914,-480.0,0.00019924,2]
[388491481,1759210244923,-480.0,0.00019924,2]
[388491482,1759210244932,-480.0,0.00019924,2]
[388491483,1759210244943,-493.50679997,0.00019924,2]
[388491484,1759210244952,-480.0,0.00019924,2]
[388491485,1759210244962,-480.0,0.00019924,2]
[388491486,1759210244977,-483.42868791,0.00019924,2]
[388491487,1759210244986,-505.4,0.00019924,2]
[388491488,1759210244996,-480.0,0.00019924,2]
[388491489,1759210245005,-480.0,0.00019924,2]
[388491490,1759210245014,-480.0,0.00019924,2]
[388491491,1759210245023,-481.90860791,0.00019924,2]
[388491492,1759210245032,-480.0,0.00019924,2]
[388491493,1759210245041,-480.0,0.00019924,2]
[388491494,1759210245051,-480.41257682,0.00019924,2]
[388491495,1759210245060,-480.0,0.00019924,2]
[388491496,1759210245069,-480.0,0.00019924,2]
[388491497,1759210245078,-892.56,0.00019924,2]
[388491498,1759210245087,-480.0,0.00019924,2]
[388491499,1759210245096,-480.0,0.00019924,2]
[388491500,1759210245105,-480.0,0.00019924,2]
[388491501,1759210245115,-480.0,0.00019924,2]
[388491502,1759210245124,-500.0,0.00019925,2]
[388491503,1759210245133,-151.0,0.00019925,2]
[388491504,1759210245142,-151.0,0.00019925,2]
[388491505,1759210245152,-480.0,0.00019925,2]
[388491506,1759210245161,-480.0,0.00019925,2]
[388491507,1759210245171,-480.0,0.00019925,2]
[388491508,1759210245180,-480.0,0.00019925,2]
[388491509,1759210245189,-480.0,0.00019925,2]
[388491510,1759210245198,-480.0,0.00019925,2]
[388491511,1759210245207,-480.0,0.00019925,2]
[388491512,1759210245216,-480.0,0.00019925,2]
[388491513,1759210245225,-480.0,0.00019925,2]
[388491514,1759210245234,-151.0,0.00019925,2]
[388491515,1759210245243,-151.0,0.00019925,2]
[388491516,1759210245252,-151.0,0.00019925,2]
[388491517,1759210245262,-151.0,0.00019925,2]
[388491518,1759210245271,-178.368434,0.00019925,2]
[388491519,1759210245281,-763.993657,0.00019925,2]
[388491520,1759210245290,-223.159862,0.00019925,2]
[388491521,1759210245299,-763.993657,0.00019925,2]
[388491522,1759210245309,-763.993657,0.00019925,2]
[388491523,1759210245318,-763.993652,0.00019925,2]
[388491525,1759210245327,-198.909964,0.00019925,2]
[388491530,1759210245376,-198.909964,0.00019925,2]
[388491532,1759210245385,-198.909964,0.00019925,2]
[388491534,1759210245394,-198.90996,0.00019925,2]
[388491536,1759210245403,-1695.241841,0.00019925,2]
[388491538,1759210245412,-1695.241841,0.00019925,2]
[388491539,1759210245421,-1695.241841,0.00019925,2]
[388491541,1759210245430,-151.0,0.00019925,2]
[388491543,1759210245439,-1695.241848,0.00019925,2]
[388491545,1759210245448,-151.0,0.00019925,2]
[388491547,1759210245457,-151.0,0.00019925,2]
[388491549,1759210245466,-151.0,0.00019925,2]
[388491551,1759210245475,-151.0,0.00019925,2]
[388491553,1759210245488,-184.994339,0.00019925,2]
[388491555,1759210245497,-184.994339,0.00019925,2]
[388491558,1759210245506,-184.994339,0.00019925,2]
[388491560,1759210245515,-184.994343,0.00019925,2]
[388491562,1759210245524,-284.0,0.00019926,2]
[388491564,1759210245533,-496.85,0.00019927,2]
[388491566,1759210245542,-157.351722,0.00019937,2]
[388491567,1759210245551,-157.351722,0.00019937,2]
[388491568,1759210245559,-157.351722,0.00019937,2]
[388491569,1759210245569,-157.351732,0.00019937,2]
[388491570,1759210245577,-200.58523692,0.00019937,2]
[388491571,1759210245587,-480.0,0.00019938,2]
[388491572,1759210245596,-480.0,0.00019938,2]
[388491573,1759210245605,-339.0,0.00019964,2]
[388491574,1759210245614,-500.0,0.00019973,2]
[388491575,1759210245623,-500.0,0.00019973,2]
[388491576,1759210245632,-500.0,0.00019973,2]
[388491577,1759210245641,-502.71177193,0.00019973,2]
[388491578,1759210245650,-414.23417332,0.00019973,2]
[388491579,1759210245659,-500.0,0.00019973,2]
[388491580,1759210245668,-500.77570501,0.00019973,2]
[388491581,1759210245677,-501.31242082,0.00019973,2]
[388491583,1759210245687,-500.29258929,0.00019973,2]
[388491585,1759210245696,-500.0,0.00019973,2]
[388491586,1759210245705,-500.0,0.00019973,2]
[388491588,1759210245714,-500.0,0.00019973,2]
[388491589,1759210245723,-500.0,0.00019973,2]
[388491590,1759210245731,-279.26555916,0.00019973,2]
[388491591,1759210245740,-500.0,0.00019973,2]
[388491593,1759210245749,-500.0,0.00019973,2]
[388491594,1759210245757,-500.0,0.00019973,2]
[388491595,1759210245766,-500.87691162,0.00019973,2]
[388491596,1759210245775,-500.0,0.00019973,2]
[388491597,1759210245783,-451.81307696,0.00019973,2]
[388491598,1759210245793,-500.0,0.00019973,2]
[388491599,1759210245802,-500.0,0.00019973,2]
[388491600,1759210245810,-500.0,0.00019973,2]
[388491602,1759210245819,-500.0,0.00019973,2]
[388491604,1759210245828,-500.0,0.00019973,2]
[388491605,1759210245836,-500.0,0.00019973,2]
[388491607,1759210245846,-500.0,0.00019973,2]
[388491609,1759210245854,-501.72835421,0.00019973,2]
[388491611,1759210245865,-501.28586891,0.00019973,2]
[388491613,1759210245874,-500.0,0.00019973,2]
[388491614,1759210245883,-151.0,0.00019973,2]
[388491616,1759210245892,-151.0,0.00019973,2]
[388491618,1759210245901,-1877.51249792,0.00019975,2]
[388491620,1759210245911,-284.0,0.00019989,2]
[388491621,1759210245922,-76663.3311784,0.0001999,2]
[388491622,1759210245931,-160.0,0.0002,3]
[388491623,1759210245939,-7343.3148585,0.0002,2]
[388491624,1759210245948,-162.424336,0.0002,2]
[388491625,1759210245957,-393.6962078,0.0002,2]
[388491626,1759210245966,-1185.5576927,0.0002,2]
[388491627,1759210245975,-297.0711174,0.0002,2]
[388491628,1759210245984,-159.2973323,0.0002,2]
[388491629,1759210245993,-297.0711174,0.0002,2]
[388491630,1759210246002,-469.23412019,0.0002,2]
[388491631,1759210246011,-160.0,0.00020014,2]
[388491632,1759210246020,-168.0,0.00020083,2]
[388491633,1759210246030,-600.28,0.00020096,2]
[388491634,1759210246039,-262.11,0.00020096,2]
[388491635,1759210246049,-480.0,0.00020096,2]
[388491636,1759210246058,-480.0,0.00020096,2]
[388491637,1759210246068,-195.28,0.00020096,2]
[388491638,1759210246077,-480.0,0.00020096,2]
[388491639,1759210246088,-480.0,0.00020096,2]
[388491640,1759210246098,-480.0,0.00020096,2]
[388491642,1759210246108,-866.04,0.00020096,2]
[388491643,1759210246117,-480.0,0.00020097,2]
[388491644,1759210246127,-480.0,0.00020097,2]
[388491645,1759210246136,-480.0,0.00020097,2]
[388491646,1759210246146,-480.0,0.00020097,2]
[388491647,1759210246155,-482.80951846,0.00020097,2]
[388491648,1759210246165,-480.0,0.00020097,2]
[388491649,1759210246174,-480.0,0.00020097,2]
[388491650,1759210246184,-482.35496948,0.00020097,2]
[388491651,1759210246193,-480.0,0.00020097,2]
[388491652,1759210246203,-177.8114089,0.00020097,2]
[388491653,1759210246212,-480.0,0.00020097,2]
[388491654,1759210246222,-613.53,0.00020097,2]
[388491655,1759210246231,-404.21972886,0.00020097,2]
[388491656,1759210246241,-482.31055571,0.00020097,2]
[388491657,1759210246251,-301.06,0.00020097,2]
[388491658,1759210246260,-480.0,0.00020097,2]
[388491659,1759210246269,-670.35,0.00020097,2]
[388491660,1759210246279,-480.0,0.00020097,2]
[388491661,1759210246288,-179.61,0.00020097,2]
[388491662,1759210246297,-480.0,0.00020097,2]
[388491663,1759210246307,-3780.9,0.00020097,2]
[388491664,1759210246316,-193.91,0.00020097,2]
[388491665,1759210246326,-5318.57,0.00020097,2]
[388491666,1759210246335,-262.2,0.00020097,2]
[388491667,1759210246345,-496.44,0.00020097,2]
[388491668,1759210246354,-480.0,0.00020097,2]
[388491669,1759210246364,-742.26,0.00020097,2]
[388491670,1759210246374,-484.56,0.00020097,2]
[388491671,1759210246383,-480.0,0.00020097,2]
[388491672,1759210246393,-480.0,0.00020097,2]
[388491673,1759210246402,-480.0,0.00020098,2]
[388491675,1759210246413,-366.12372425,0.00020098,2]
[388491676,1759210246422,-480.0,0.00020098,2]
[388491677,1759210246431,-480.0,0.00020098,2]
[388491679,1759210246441,-500.86,0.00020098,2]
[388491681,1759210246451,-485.36,0.00020098,2]
[388491683,1759210246460,-1231.35,0.00020098,2]
[388491684,1759210246470,-1441.99,0.00020098,2]
[388491686,1759210246479,-480.0,0.00020098,2]
[388491689,1759210246494,-480.0,0.00020098,2]
[388491691,1759210246503,-738.13,0.00020098,2]
[388491693,1759210246513,-480.0,0.00020098,2]
[388491695,1759210246522,-480.0,0.00020098,2]
[388491697,1759210246533,-484.27227209,0.00020098,2]
[388491699,1759210246543,-1134.07,0.00020098,2]
[388491701,1759210246553,-480.0,0.00020098,2]
[388491703,1759210246564,-480.0,0.00020098,2]
[388491705,1759210246574,-743.53,0.00020098,2]
[388491707,1759210246584,-480.0,0.00020098,2]
[388491709,1759210246593,-480.0,0.00020098,2]
[388491711,1759210246603,-594.61,0.00020098,2]
[388491713,1759210246613,-480.0,0.00020098,2]
[388491715,1759210246622,-480.0,0.00020098,2]
[388491717,1759210246632,-480.0,0.00020098,2]
[388491719,1759210246642,-561.69,0.00020098,2]
[388491721,1759210246651,-689.61,0.00020098,2]
[388491723,1759210246662,-875.84,0.00020098,2]
[388491725,1759210246671,-533.09,0.00020098,2]
[388491727,1759210246681,-746.92,0.00020098,2]
[388491729,1759210246690,-480.0,0.00020098,2]
[388491731,1759210246700,-480.0,0.00020098,2]
[388491733,1759210246710,-1793.86,0.00020098,2]
[388491735,1759210246719,-1251.13,0.00020098,2]
[388491737,1759210246728,-988.82,0.00020098,2]
[388491739,1759210246738,-743.82,0.00020098,2]
[388491741,1759210246748,-482.64905225,0.00020098,2]
[388491743,1759210246758,-480.0,0.00020098,2]
[388491745,1759210246768,-482.80355486,0.00020098,2]
[388491747,1759210246778,-484.5880002,0.00020098,2]
[388491750,1759210246788,-480.0,0.00020098,2]
[388491752,1759210246798,-536.39,0.00020098,2]
[388491753,1759210246808,-480.0,0.00020098,2]
[388491754,1759210246818,-480.0,0.00020098,2]
[388491755,1759210246828,-328.78798777,0.00020098,2]
[388491756,1759210246837,-480.0,0.00020098,2]
[388491757,1759210246847,-480.0,0.00020098,2]
[388491758,1759210246857,-284.0,0.00020169,2]
[388491759,1759210246867,-1877.51249792,0.00020188,2]
[388491760,1759210246877,-151.0,0.00020189,3]
[388491761,1759210246887,-202.4236532,0.00020189,3]
[388491762,1759210246897,-500.0,0.00020189,3]
[388491763,1759210246907,-500.0,0.00020189,3]
[388491764,1759210246917,-324.04504922,0.00020198,2]
[388491765,1759210246927,-151.0,0.00020198,2]
[388491766,1759210246937,-500.0,0.00020198,2]
[388491767,1759210246947,-1522.0,0.00020198,2]
[388491768,1759210246957,-151.0,0.00020198,2]
[388491769,1759210246967,-199.91120892,0.00020198,2]
[388491770,1759210246976,-500.0,0.00020198,2]
[388491771,1759210246986,-151.0,0.00020198,2]
[388491772,1759210246996,-500.0,0.00020198,2]
[388491773,1759210247007,-352.25149397,0.00020198,2]
[388491774,1759210247017,-490.19,0.00020198,2]
[388491775,1759210247027,-480.0,0.00020198,2]
[388491776,1759210247037,-480.0,0.00020198,2]
[388491777,1759210247047,-480.0,0.00020198,2]
[388491778,1759210247057,-480.0,0.00020198,2]
[388491779,1759210247068,-480.0,0.00020198,2]
[388491780,1759210247081,-480.0,0.00020198,2]
[388491781,1759210247093,-480.0,0.00020198,2]
[388491782,1759210247105,-480.0,0.00020198,2]
[388491783,1759210247118,-246.38567713,0.00020198,2]
[388491784,1759210247130,-480.0,0.00020198,2]
[388491785,1759210247143,-200.0,0.00020198,2]
[388491786,1759210247153,-480.0,0.00020198,2]
[388491787,1759210247163,-480.0,0.00020198,2]
[388491788,1759210247175,-784.63,0.00020198,2]
[388491789,1759210247186,-480.0,0.00020198,2]
[388491790,1759210247197,-480.0,0.00020198,2]
[388491791,1759210247209,-594.81,0.00020198,2]
[388491792,1759210247220,-480.0,0.00020198,2]
[388491793,1759210247232,-480.0,0.00020198,2]
[388491794,1759210247244,-480.0,0.00020198,2]
[388491795,1759210247256,-480.0,0.00020198,2]
[388491796,1759210247269,-480.0,0.00020198,2]
[388491797,1759210247282,-480.0,0.00020198,2]
[388491798,1759210247294,-761.34,0.00020198,2]
[388491799,1759210247305,-480.0,0.00020198,2]
[388491800,1759210247316,-480.0,0.00020198,2]
[388491801,1759210247328,-161.53600708,0.00020198,2]
[388491802,1759210247339,-480.0,0.00020198,2]
[388491803,1759210247349,-958.9,0.00020198,2]
[388491804,1759210247361,-480.0,0.00020198,2]
[388491805,1759210247373,-480.0,0.00020198,2]
[388491806,1759210247384,-480.0,0.00020198,2]
[388491807,1759210247396,-480.0,0.00020198,2]
[388491808,1759210247407,-480.0,0.00020198,2]
[388491809,1759210247417,-687.19,0.00020198,2]
[388491810,1759210247428,-480.0,0.00020198,2]
[388491811,1759210247439,-480.0,0.00020198,2]
[388491812,1759210247451,-480.0,0.00020198,2]
[388491813,1759210247462,-480.0,0.00020198,2]
[388491814,1759210247474,-480.0,0.00020198,2]
[388491815,1759210247485,-1201.5,0.00020198,2]
[388491816,1759210247497,-480.0,0.00020198,2]
[388491817,1759210247509,-480.0,0.00020198,2]
[388491818,1759210247521,-480.0,0.00020198,2]
[388491819,1759210247534,-524.35,0.00020198,2]
[388491820,1759210247546,-480.0,0.00020198,2]
[388491821,1759210247559,-492.87,0.00020198,2]
[388491822,1759210247572,-480.58,0.00020198,2]
[388491823,1759210247583,-406.92892921,0.00020198,2]
[388491824,1759210247594,-480.0,0.00020198,2]
[388491825,1759210247605,-480.0,0.00020198,2]
[388491826,1759210247615,-480.0,0.00020198,2]
[388491827,1759210247626,-480.0,0.00020198,2]
[388491828,1759210247638,-480.0,0.00020198,2]
[388491829,1759210247650,-480.0,0.00020198,2]
[388491830,1759210247665,-494.53,0.00020198,2]
[388491831,1759210247677,-508.99,0.00020198,2]
[388491832,1759210247688,-480.0,0.00020198,2]
[388491833,1759210247699,-607.17,0.00020198,2]
[388491834,1759210247710,-1335.74,0.00020198,2]
[388491835,1759210247721,-500.0,0.00020198,2]
[388491836,1759210247733,-480.0,0.00020198,2]
[388491837,1759210247745,-480.0,0.00020198,2]
[388491838,1759210247757,-480.0,0.00020198,2]
[388491839,1759210247767,-480.0,0.00020198,2]
[388491840,1759210247778,-480.0,0.00020198,2]
[388491841,1759210247789,-480.0,0.00020198,2]
[388491842,1759210247800,-1123.71,0.00020198,2]
[388491843,1759210247811,-483.78191068,0.00020198,2]
[388491844,1759210247822,-480.0,0.00020198,2]
[388491845,1759210247833,-572.56,0.00020198,2]
[388491846,1759210247844,-480.0,0.00020198,2]
[388491847,1759210247855,-480.0,0.00020198,2]
[388491848,1759210247866,-480.0,0.00020198,2]
[388491849,1759210247877,-549.83,0.00020198,2]
[388491850,1759210247889,-480.0,0.00020198,2]
[388491851,1759210247900,-480.0,0.00020198,2]
[388491852,1759210247911,-480.0,0.00020198,2]
[388491853,1759210247923,-480.0,0.00020198,2]
[388491854,1759210247934,-480.0,0.00020198,2]
[388491855,1759210247945,-480.0,0.00020198,2]
[388491856,1759210247957,-480.0,0.00020198,2]
[388491857,1759210247969,-505.4,0.00020198,2]
[388491858,1759210247980,-480.0,0.00020198,2]
[388491859,1759210247991,-480.0,0.00020198,2]
[388491860,1759210248002,-480.0,0.00020198,2]
[388491861,1759210248012,-480.0,0.00020198,2]
[388491862,1759210248023,-480.0,0.00020198,2]
[388491863,1759210248033,-480.0,0.00020198,2]
[388491864,1759210248044,-480.0,0.00020198,2]
[388491865,1759210248055,-892.56,0.00020198,2]
[388491866,1759210248065,-480.0,0.00020198,2]
[388491867,1759210248076,-480.0,0.00020198,2]
[388491868,1759210248087,-480.0,0.00020198,2]
[388491869,1759210248098,-480.0,0.00020198,2]
[388491870,1759210248109,-554.96393613,0.00020199,2]
[388491871,1759210248120,-300.47308062,0.00020199,2]
[388491872,1759210248131,-154.88038911,0.00020199,2]
[388491873,1759210248143,-480.0,0.00020199,2]
[388491874,1759210248154,-480.0,0.00020199,2]
[388491875,1759210248165,-480.0,0.00020199,2]
[388491876,1759210248176,-480.0,0.00020199,2]
[388491877,1759210248187,-190.52,0.00020199,2]
[388491878,1759210248198,-480.0,0.00020199,2]
[388491879,1759210248209,-480.0,0.00020199,2]
[388491880,1759210248220,-589.38421298,0.00020199,2]
[388491881,1759210248231,-480.0,0.00020199,2]
[388491882,1759210248242,-151.0,0.000202,3]
[388491883,1759210248253,-151.0,0.000202,3]
[388491884,1759210248264,-151.0,0.000202,3]
[388491885,1759210248275,-151.0,0.000202,2]
[388491886,1759210248286,-496.85,0.00020201,2]
[388491887,1759210248297,-423.0,0.00020201,2]
[388491888,1759210248307,-480.0,0.00020212,2]
[388491889,1759210248320,-563.15730197,0.00020212,2]
[388491890,1759210248330,-160.0,0.00020282,3]
[388491891,1759210248341,-600.28,0.0002037,2]
[388491892,1759210248351,-480.0,0.0002037,2]
[388491893,1759210248362,-480.0,0.0002037,2]
[388491894,1759210248373,-480.0,0.0002037,2]
[388491895,1759210248385,-480.0,0.0002037,2]
[388491896,1759210248396,-480.0,0.0002037,2]
[388491897,1759210248407,-866.04,0.0002037,2]
[388491898,1759210248418,-480.0,0.00020371,2]
[388491899,1759210248429,-480.0,0.00020371,2]
[388491900,1759210248440,-480.0,0.00020371,2]
[388491901,1759210248451,-480.0,0.00020371,2]
[388491902,1759210248462,-480.0,0.00020371,2]
[388491903,1759210248473,-480.0,0.00020371,2]
[388491904,1759210248484,-477.62582933,0.00020371,2]
[388491905,1759210248503,-480.0,0.00020371,2]
[388491906,1759210248524,-480.0,0.00020371,2]
[388491907,1759210248535,-670.35,0.00020371,2]
[388491908,1759210248545,-480.0,0.00020371,2]
[388491909,1759210248556,-480.0,0.00020371,2]
[388491910,1759210248566,-3780.9,0.00020371,2]
[388491911,1759210248577,-5318.57,0.00020371,2]
[388491912,1759210248587,-496.44,0.00020371,2]
[388491913,1759210248597,-480.0,0.00020371,2]
[388491914,1759210248608,-742.26,0.00020371,2]
[388491915,1759210248619,-480.0,0.00020371,2]
[388491916,1759210248630,-499.75,0.00020371,2]
[388491917,1759210248640,-480.0,0.00020372,2]
[388491918,1759210248652,-480.0,0.00020372,2]
[388491919,1759210248663,-440.7791848,0.00020372,2]
[388491920,1759210248673,-500.86,0.00020372,2]
[388491921,1759210248684,-485.36,0.00020372,2]
[388491922,1759210248695,-1231.35,0.00020372,2]
[388491923,1759210248705,-1441.99,0.00020372,2]
[388491924,1759210248715,-480.0,0.00020372,2]
[388491925,1759210248726,-480.0,0.00020372,2]
[388491926,1759210248736,-738.13,0.00020372,2]
[388491927,1759210248746,-480.0,0.00020372,2]
[388491928,1759210248756,-480.0,0.00020372,2]
[388491929,1759210248767,-1134.07,0.00020372,2]
[388491930,1759210248777,-480.0,0.00020372,2]
[388491931,1759210248787,-483.14704888,0.00020372,2]
[388491932,1759210248798,-743.53,0.00020372,2]
[388491933,1759210248808,-480.0,0.00020372,2]
[388491934,1759210248819,-480.0,0.00020372,2]
[388491935,1759210248829,-594.61,0.00020372,2]
[388491936,1759210248840,-480.0,0.00020372,2]
[388491937,1759210248850,-480.0,0.00020372,2]
[388491938,1759210248861,-480.0,0.00020372,2]
[388491939,1759210248871,-561.69,0.00020372,2]
[388491940,1759210248881,-689.61,0.00020372,2]
[388491941,1759210248891,-875.84,0.00020372,2]
[388491942,1759210248902,-533.09,0.00020372,2]
[388491943,1759210248912,-746.92,0.00020372,2]
[388491944,1759210248922,-480.0,0.00020372,2]
[388491945,1759210248932,-480.0,0.00020372,2]
[388491946,1759210248942,-1793.86,0.00020372,2]
[388491947,1759210248952,-1251.13,0.00020372,2]
[388491948,1759210248962,-988.82,0.00020372,2]
[388491949,1759210248972,-743.82,0.00020372,2]
[388491950,1759210248982,-480.0,0.00020372,2]
[388491951,1759210248993,-480.0,0.00020372,2]
[388491952,1759210249003,-536.39,0.00020372,2]
[388491953,1759210249013,-480.0,0.00020372,2]
[388491954,1759210249023,-480.0,0.00020372,2]
[388491955,1759210249033,-480.0,0.00020372,2]
[388491956,1759210249044,-302.71323649,0.00020372,2]
[388491957,1759210249055,-285.50106159,0.00020382,2]
[388491958,1759210249260,-176.75274462,0.000204,2]
[388491959,1759210249280,-280.848,0.000204,2]
[388491960,1759210249292,-1877.51249792,0.000204,2]
[388491961,1759210249302,-168.0,0.0002043,2]
[388491962,1759210249311,-151.0,0.00020463,3]
[388491963,1759210249321,-500.0,0.00020463,3]
[388491964,1759210249331,-500.0,0.00020463,3]
[388491965,1759210249340,-151.0,0.00020472,2]
[388491966,1759210249349,-239.05350842,0.00020472,2]
[388491967,1759210249358,-1522.0,0.00020472,2]
[388491968,1759210249367,-267.63883924,0.00020472,2]
[388491969,1759210249376,-500.0,0.00020472,2]
[388491970,1759210249385,-274.17077749,0.00020472,2]
[388491971,1759210249394,-467.1954031,0.00020472,2]
[388491972,1759210249402,-490.19,0.00020472,2]
[388491973,1759210249411,-480.0,0.00020472,2]
[388491974,1759210249420,-480.0,0.00020472,2]
[388491975,1759210249429,-480.0,0.00020472,2]
[388491976,1759210249438,-480.0,0.00020472,2]
[388491977,1759210249448,-480.0,0.00020472,2]
[388491978,1759210249457,-480.0,0.00020472,2]
[388491979,1759210249466,-374.35159072,0.00020472,2]
[388491980,1759210249476,-480.0,0.00020472,2]
[388491981,1759210249485,-480.0,0.00020472,2]
[388491982,1759210249493,-480.0,0.00020472,2]
[388491983,1759210249502,-480.0,0.00020472,2]
[388491984,1759210249511,-784.63,0.00020472,2]
[388491985,1759210249519,-480.0,0.00020472,2]
[388491986,1759210249529,-480.0,0.00020472,2]
[388491987,1759210249539,-594.81,0.00020472,2]
[388491988,1759210249548,-480.0,0.00020472,2]
[388491989,1759210249557,-480.0,0.00020472,2]
[388491990,1759210249566,-480.0,0.00020472,2]
[388491991,1759210249576,-480.0,0.00020472,2]
[388491992,1759210249585,-480.0,0.00020472,2]
[388491993,1759210249594,-480.0,0.00020472,2]
[388491994,1759210249604,-761.34,0.00020472,2]
[388491995,1759210249613,-480.0,0.00020472,2]
[388491996,1759210249623,-480.0,0.00020472,2]
[388491997,1759210249632,-480.0,0.00020472,2]
[388491998,1759210249642,-958.9,0.00020472,2]
[388491999,1759210249651,-480.0,0.00020472,2]
[388492000,1759210249660,-480.0,0.00020472,2]
[388492001,1759210249669,-480.0,0.00020472,2]
[388492002,1759210249679,-480.0,0.00020472,2]
[388492003,1759210249688,-480.0,0.00020472,2]
[388492004,1759210249698,-687.19,0.00020472,2]
[388492005,1759210249707,-480.99086818,0.00020472,2]
[388492006,1759210249717,-480.0,0.00020472,2]
[388492007,1759210249727,-480.0,0.00020472,2]
[388492008,1759210249736,-480.0,0.00020472,2]
[388492009,1759210249745,-480.0,0.00020472,2]
[388492010,1759210249754,-1201.5,0.00020472,2]
[388492011,1759210249763,-480.0,0.00020472,2]
[388492012,1759210249773,-480.0,0.00020472,2]
[388492013,1759210249782,-163.73466218,0.00020472,2]
[388492014,1759210249791,-524.35,0.00020472,2]
[388492015,1759210249800,-480.0,0.00020472,2]